Cogmind - Beta 16 @@@ ROGUE MODE // 2025.11.03 @ 23:29:31 Player: Anonymous Bosch Result: Destroyed by P-80 Master with Gamma Rifle Performance ------------- Evolutions (7) 3500 Regions Visited (12) 2400 Robots Destroyed (181) 905 Value Destroyed (7646) 7646 Prototype IDs (23) 460 Alien Tech Used (0) 0 Bonus (1157) 1157 TOTAL SCORE: 16068 Bonus ------- High Alert Combat Kills 445 Follower Combat Kills 470 Entered DSFs 500 Registered with UFD 300 Met Optimus in HQ 500 Friendly Fire -1058 Cogmind --------- Core Integrity 0/1300 Matter 123/300 Energy 22/280 System Corruption 20% Temperature Cool (0) Movement Walking (106) Location -3/Research Parts ------- > --- POWER (3) -------- Light Particle Reactor Micro Antimatter Reactor Micro Antimatter Reactor > --- PROPULSION (6) --- Improved Thunder Leg Enhanced Biometal Leg Enhanced Multireflex Exoskeleton Enhanced Multireflex Exoskeleton > --- UTILITY (8) ------ Experimental Cooling System Experimental Cooling System Terrain Scan Processor Advanced Targeting Computer Advanced Transmission Jammer Graphene Brace Improved Force Field Advanced Hacking Suite > --- WEAPON (4) ------- Plasma Rifle Quantum Rifle Coil Gun Heavy Flak Cannon > --- INVENTORY (5) ---- Myomer Leg Enhanced Biometal Leg Heavy Machine Gun Improved Datajack Peak State ------------ > --- POWER ------------ Micro Fission Core Particle Reactor Graviton Reactor > --- PROPULSION ------- Improved Thunder Leg Enhanced Biometal Leg Enhanced Multireflex Exoskeleton Enhanced Multireflex Exoskeleton > --- UTILITY ---------- Experimental Cooling System Large Storage Unit Advanced Sensor Array Terrain Scan Processor Advanced Targeting Computer Advanced Transmission Jammer Graphene Brace Advanced Hacking Suite > --- WEAPON ----------- Wave Gun Phase Gun Heavy Gauss Cannon Tactical Quantum Warhead > --- INVENTORY -------- Neutrino Core Light Particle Reactor Micro Antimatter Reactor Enhanced Biometal Leg Enhanced Biometal Leg Experimental Cooling System Experimental Cooling System Advanced Reaction Control System Plasma Rifle Enhanced Gauss Cannon Hardcell Cannon Linear Accelerator Improved Datajack [Rating: 153] Favorites ----------- Power Light Ion Engine Engine Light Ion Engine Power Core Neutrino Core Reactor Antimatter Reactor Propulsion Flexi-carbon Leg Treads Light Treads Leg Flexi-carbon Leg Flight Unit Improved Surge Thruster Utility Large Storage Unit Device Advanced Sensor Array Storage Large Storage Unit Processor Core Analyzer Hackware Advanced Hacking Suite Protection Improved Medium Armor Plating Weapon Shotgun Energy Gun Heavy Beamcaster Ballistic Gun Shotgun Ballistic Cannon Gauss Cannon Launcher Heavy Shock Bomb Launcher Special Weapon Mining Laser Impact Weapon Heavy Mace Piercing Weapon Thermal Lance Build | -11 -10 -10 -10 -9 -6 -6 -5 -5 -5 -4 -4 -3 ------- Run | Yrd Mat Min Sub Scr Fac DSF Fac Was Fac Fac Ext Res Slots Evolved 14 | . . . . . 8 . 2 . . 2 . 2 Power 2 | . . . . . 1 . . . . . . 1 Propulsion 4 | . . . . . 2 . 1 . . 1 . . Utility 6 | . . . . . 4 . 1 . . . . 1 Weapon 2 | . . . . . 1 . . . . 1 . . Parts Attached 201 | 6 15 6 2 16 8 22 2 8 17 6 38 55 Power 29 | 1 1 1 1 2 1 . . 3 1 1 6 11 Engine 7 | 1 1 1 1 2 1 . . . . . . . Core 7 | . . . . . . . . . 1 . 2 4 Reactor 15 | . . . . . . . . 3 . 1 4 7 Propulsion 66 | 2 4 2 1 7 2 15 1 1 1 1 13 16 Treads 2 | . 2 . . . . . . . . . . . Leg 60 | 2 2 2 1 7 2 11 1 1 1 1 13 16 Wheel . | . . . . . . . . . . . . . Hover . | . . . . . . . . . . . . . Flight 4 | . . . . . . 4 . . . . . . Utility 56 | 1 3 2 . 3 4 2 1 3 8 4 10 15 Device 31 | . 1 1 . 1 2 2 . 2 5 3 4 10 Storage 7 | 1 2 . . 2 . . . . . . 1 1 Processor 6 | . . 1 . . . . 1 1 . . 1 2 Hackware 2 | . . . . . 1 . . . . . . 1 Protection 10 | . . . . . 1 . . . 3 1 4 1 Artifact . | . . . . . . . . . . . . . Weapon 50 | 2 7 1 . 4 1 5 . 1 7 . 9 13 Energy Gun 19 | . 3 . . 2 . 3 . . 2 . 4 5 Energy Cannon . | . . . . . . . . . . . . . Ballistic Gun 13 | 2 3 . . . . . . . . . 4 4 Ballistic Cannon 6 | . . . . . . 1 . . 1 . 1 3 Launcher 7 | . . 1 . . . 1 . 1 3 . . 1 Special Weapon 2 | . 1 . . 1 . . . . . . . . Impact Weapon 2 | . . . . 1 . . . . 1 . . . Slashing Weapon . | . . . . . . . . . . . . . Piercing Weapon 1 | . . . . . 1 . . . . . . . Special Melee Weapon . | . . . . . . . . . . . . . Unidentified Prototypes 17 | . 1 . . 1 . 1 . 1 4 2 . 7 Corrupted Parts 8 | . . . . . . . . . . . 8 . System Corruption 45 | . . . . . . . . . . . 45 . Parts Lost 85 | . . 1 3 4 . 5 . . 10 3 37 22 Power 15 | . . 1 1 1 . . . . 1 1 5 5 Propulsion 19 | . . . 1 2 . 1 . . 1 . 13 1 Utility 25 | . . . . . . . . . 8 1 8 8 Weapon 26 | . . . 1 1 . 4 . . . 1 11 8 Highest Loss Streak 16 | . . 1 3 3 . 2 . . 3 1 16 8 To Critical Strikes 2 | . . . . . . . . . . . 1 1 Average Backups 11 | 3 9 10 9 9 9 14 13 14 13 12 11 13 Power . | . 1 1 1 . . . . 1 . . . 1 Propulsion 1 | 1 1 1 . . 2 5 6 2 1 . 1 3 Utility 4 | . 4 5 4 5 4 4 4 5 5 4 4 2 Weapon 4 | 1 2 3 3 3 3 3 3 3 4 6 3 5 Tool/Special . | . . . . . . . . . . . . . Unused Backups 24 | . 2 . . 5 . 3 . 2 1 1 2 8 Power 2 | . . . . 1 . . . . . . . 1 Propulsion 3 | . . . . . . 2 . . . . . 1 Utility 5 | . . . . 1 . 1 . 1 . 1 . 1 Weapon 10 | . 2 . . 3 . . . 1 . . . 4 Tool/Special 4 | . . . . . . . . . 1 . 2 1 Average Slot Usage (%) 93 | . 98 99 99 98 90 91 92 94 92 99 75 92 Engine 6 | . 14 13 14 13 12 13 11 5 . . . . Core 2 | . . . . . . . . . . 5 2 7 Reactor 3 | . . . . . . . . 4 9 4 4 5 Leg 26 | . 27 28 27 27 25 24 28 29 28 31 21 26 Device 9 | . 4 10 . . 19 20 18 17 11 13 6 14 Storage 9 | . 22 14 14 14 6 6 5 5 5 5 4 3 Processor 8 | . . 3 14 13 . . 3 10 11 10 13 9 Protection 2 | . . . . . . 4 5 . 4 6 5 2 Energy Gun 4 | . 7 . . 2 13 15 5 . 3 8 5 5 Ballistic Gun 9 | . 18 26 18 23 1 1 . . . . 1 1 Ballistic Cannon 2 | . . . . . . . 5 5 5 5 3 3 Launcher 1 | . . . 9 . . . 4 7 3 1 1 1 Piercing Weapon 1 | . . . . . 4 1 . 2 3 3 2 3 Peak Build Rating 153 | 6 10 10 10 27 59 70 77 100 96 107 107 153 Average Rating 63 | 5 8 9 9 12 55 64 74 86 89 103 77 130 On Entrance 50 | . 6 10 9 10 27 59 69 77 99 76 107 101 Avg Prop Armor Cover (%) 7 | . . . . 8 4 . . . . . 9 7 Naked Turns . | . . . . . . . . . . . . . Heaviest Build 118 | 14 20 20 19 38 56 69 70 83 95 97 98 118 Greatest Support 171 | 20 40 20 20 38 57 76 95 105 105 118 120 171 Greatest Overweight (x) 5 | . . . . 2 . 5 . . 1 . 2 1 Average Overweight (x) . | . . . . . . . . . . . . . Largest Inventory Capacity 15 | 8 10 10 10 15 15 15 15 15 15 15 15 15 Average Capacity 12 | 7 9 10 10 10 15 15 15 15 15 15 14 14 Most Carried 15 | 7 10 10 10 15 14 15 15 15 15 15 15 15 Average Carried 11 | 3 9 10 9 10 9 14 13 14 13 12 11 13 Final Capacity 15 | 8 10 10 10 15 15 15 15 15 15 15 15 5 Final Carried 15 | 7 10 10 8 15 11 15 14 15 13 15 11 4 Scrap Suit Usage (%) 12 | . . . . . 1 49 100 93 45 . . . Parts Cannibalized 19 | . . . . . . 9 . 5 5 . . . Class Distribution -------------------- 32% | Scavenger-Mutant 27% | Mutant 10% | Scavenger-Tank 10% | Scavenger-Gunner 8% | Tank 3% | Scavenger-Skirmisher Dominant Class ---------------- Scavenger-Mutant | -10/Materials Scavenger-Mutant | -10/Mines Scavenger-Mutant | -10/Subcaves Mutant | -9/Scraptown Scavenger-Scrapper | -6/Factory Scavenger-Tank | -6/DSF Scavenger-Skirmisher | -5/Factory Scavenger-Mutant | -5/Waste Scavenger-Mutant | -5/Factory Tank | -4/Factory Scavenger-Mutant | -4/Extension Scavenger-Gunner | -3/Research Resources | -11 -10 -10 -10 -9 -6 -6 -5 -5 -5 -4 -4 -3 ----------- Run | Yrd Mat Min Sub Scr Fac DSF Fac Was Fac Fac Ext Res Matter Collected 5449 | 314 444 206 49 441 94 284 9 124 664 342 1036 1442 Remotely 50 | . . . . . . . . . . . 50 . Salvage Created 10548 | 96 566 183 18 568 . 701 15 1006 1354 342 2501 3198 Parts 416 | 8 42 8 1 22 . 15 2 10 71 11 113 113 Haulers Intercepted 6 | . 2 . . . . . . . 1 . . 3 Recyclers Shooed 9 | . 2 1 . . . . . . 1 . 2 3 Parts Field Recycled . | . . . . . . . . . . . . . Retrieved Matter . | . . . . . . . . . . . . . Parts Self-Destructed 3 | . . . 3 . . . . . . . . . Prevented . | . . . . . . . . . . . . . Parts Restored . | . . . . . . . . . . . . . Kills | -11 -10 -10 -10 -9 -6 -6 -5 -5 -5 -4 -4 -3 ------- Run | Yrd Mat Min Sub Scr Fac DSF Fac Was Fac Fac Ext Res Combat Hostiles Destroyed 124 | . 11 3 1 9 . 7 . . 19 7 27 40 Melee 19 | . . . . . . 1 . . 4 1 4 9 Guns 60 | . 11 3 1 9 . 4 . . 4 . 16 12 Cannons 12 | . . . . . . . . . 3 1 4 4 AOE 20 | . . . . . . 1 . . 6 5 1 7 Classes Destroyed 20 | 2 6 . 1 3 . 1 . . 5 . 2 . Worker 11 | . . . . . . . . . 2 . 5 4 Builder 9 | . 1 . . . . . . . 6 . 1 1 Tunneler 7 | 2 . 1 . . . . . . . . 4 . Hauler 6 | . 2 . . . . . . . 1 . . 3 Recycler 15 | 1 . 1 . . . . . . 2 1 5 5 Operator 4 | . 1 . . . . . 1 . 1 . 1 . Watcher 5 | . 1 . . . . . . . 2 1 1 . Swarmer 31 | . 3 . . . . . . . 10 5 8 5 Grunt 40 | . 8 3 . . . 6 . . . 2 11 10 Brawler 1 | . . . . . . . . . . . 1 . Sentry 13 | . . . . . . . . . 3 . 6 4 Specialist 4 | . . . . . . 1 . . . . . 3 Hunter 5 | . . . . . . . . . 1 . . 4 Programmer 18 | . . . . . . . . . 4 . . 14 Heavy 1 | . . . . . . . . . 1 . . . Behemoth 1 | . . . . . . . . . . . 1 . Subdweller 1 | . . . 1 . . . . . . . . . Explorer 3 | . . . . 3 . . . . . . . . Guru 1 | . . . . 1 . . . . . . . . Scrapper 5 | . . . . 5 . . . . . . . . Best Kill Streak 12 | 2 3 2 1 2 . 3 1 . 10 5 11 12 Combat Bots Only 10 | . 2 2 1 2 . 3 . . 4 5 6 10 Max Kills in Single Turn 8 | 1 1 1 1 1 . 1 1 . 3 3 3 8 Gunslinging 1 | . . . . . . . . . . . 1 . Exploded 6 | . . . . . . 1 . . 2 3 1 6 Melee 1 | . . . . . . 1 . . 1 1 1 1 Uniques/NPCs Destroyed . | . . . . . . . . . . . . . Combat | -11 -10 -10 -10 -9 -6 -6 -5 -5 -5 -4 -4 -3 -------- Run | Yrd Mat Min Sub Scr Fac DSF Fac Was Fac Fac Ext Res Hostile Shots Fired 1143 | . 50 17 13 49 . 53 . . 136 33 441 351 Missed 357 | . 15 3 3 13 . 11 . . 43 15 147 107 Hits 786 | . 35 14 10 36 . 42 . . 93 18 294 244 Melee 4 | . . . . 4 . . . . . . . . Projectile 782 | . 35 14 10 32 . 42 . . 93 18 294 244 AOE 1 | . . . . . . . . . 1 . . . Critical Strikes 43 | . 1 . 1 2 . 3 . . 3 4 11 18 Actively Blocked 15 | . . . . . . . . . . . . 15 Part Disruptions 4 | . . . . . . 2 . . . . . 2 Damage Taken 16576 | . 449 198 201 634 . 892 . . 2621 246 5391 5944 Core 3228 | . 51 42 . 83 . 77 . . 906 17 748 1304 Absorbed by Shields 817 | . . . . . . . . . 46 96 492 183 Ignored by Resistances 13 | . . . . . . 13 . . . . . . Regen/Repaired (Parts) 200 | . . . . . . 76 . 50 41 . . 33 Core Remaining (%) 52 | 100 . . . 29 . 90 . . 9 . 33 . Volleys Fired 354 | 11 60 24 6 30 . 23 1 . 30 6 90 73 Largest 4 | 2 2 2 2 2 . 3 3 . 3 3 4 4 Hottest 243 | 40 120 100 46 108 . 235 171 . 202 202 235 243 Shots Fired 807 | 18 112 40 12 51 . 66 3 . 68 14 227 196 Gun 625 | 18 102 32 12 51 . 65 1 . 24 8 164 148 Cannon 134 | . . . . . . . 1 . 29 4 56 44 Launcher 33 | . . 3 . . . 1 1 . 15 2 7 4 Special 15 | . 10 5 . . . . . . . . . . Kinetic 417 | 18 77 32 12 39 . 4 1 . 29 4 119 82 Thermal 328 | . 27 5 . 12 . 40 1 . 24 8 101 110 Explosive 17 | . . 3 . . . . . . 8 2 . 4 Electromagnetic 45 | . 8 . . . . 22 1 . 7 . 7 . Robot Hit Streak 28 | 6 13 12 19 7 . 12 1 . 8 8 8 28 Robot Miss Streak 10 | 2 4 5 1 5 . 2 2 . 5 1 10 6 Penetration Max 2 | . . . . . . . . . . . 2 1 Secondary Targets 6 | . 1 . . . . 2 . . . . 2 1 Max Gunslinging Chain 1 | . 1 . . . . 1 . . . . 1 1 Shots Hit Robots 597 | 13 64 23 11 42 1 52 1 10 50 17 143 170 Core Hits 330 | 4 30 12 3 17 . 21 1 4 52 13 98 75 Critical Kills 5 | . . . . . . . . 1 1 . . 3 Critical Parts Destroyed 2 | . . . . 1 . . . . . . . 1 Critical Strikes 43 | . . . . 3 . 7 . 1 4 1 5 22 Burn 20 | . . . . 2 . 7 . . 2 1 2 6 Meltdown 4 | . . . . . . . . 1 1 . . 2 Destroy 4 | . . . . 1 . . . . . . 1 2 Blast 15 | . . . . . . . . . 1 . 2 12 Melee Attacks 192 | . . . . 1 2 7 2 10 35 12 13 110 Thermal 191 | . . . . . 2 7 2 10 35 12 13 110 Impact 1 | . . . . 1 . . . . . . . . Slashing . | . . . . . . . . . . . . . Piercing . | . . . . . . . . . . . . . Sneak Attacks 21 | . . . . . 1 . . . 3 2 2 13 Combat Hostiles 1 | . . . . . . . . . . . . 1 Follow-up Attacks . | . . . . . . . . . . . . . Damage Inflicted 23204 | 168 824 445 219 641 93 1219 52 1383 2967 1051 5485 8657 Guns 8986 | 168 780 347 219 641 . 845 . . 482 95 2580 2829 Cannons 2885 | . . . . . . . 28 . 404 88 1076 1289 Explosions 3392 | . . 98 . . . 31 24 . 952 315 985 987 Melee 7897 | . . . . . 93 343 . 1383 1129 553 844 3552 Ramming 20 | . 20 . . . . . . . . . . . Kinetic 6506 | 168 574 347 219 493 . 51 28 . 404 88 2201 1933 Thermal 13206 | . 146 . . 148 93 869 . 1383 1611 648 2571 5737 Explosive 1873 | . . 98 . . . . . . 473 315 . 987 Electromagnetic 1599 | . 84 . . . . 299 24 . 479 . 713 . Impact . | . . . . . . . . . . . . . Slashing . | . . . . . . . . . . . . . Piercing . | . . . . . . . . . . . . . Highest Corruption 46 | . . . . . . 1 . . 5 . 46 20 Average Corruption 13 | . . . . . . 1 . . 3 . 36 11 Corruption Purged . | . . . . . . . . . . . . . Corruption Blocked . | . . . . . . . . . . . . . Effects 117 | . . . . . . 2 . . 13 . 37 65 Message Errors 19 | . . . . . . . . . 2 . 3 14 Matter Fused 30 | . . . . . . 1 . . 4 . 9 16 Heat Flow Errors 15 | . . . . . . . . . 2 . 5 8 Energy Discharges 16 | . . . . . . . . . 2 . 5 9 Parts Rejected 3 | . . . . . . . . . 1 . 1 1 Data Loss (minor) 15 | . . . . . . 1 . . . . 5 9 Data Loss (major) 3 | . . . . . . . . . 1 . . 2 Misfires 4 | . . . . . . . . . 1 . 1 2 Alerts 1 | . . . . . . . . . . . . 1 Misdirections 7 | . . . . . . . . . . . 6 1 Weapon Failures 4 | . . . . . . . . . . . 2 2 Overload Shots . | . . . . . . . . . . . . . Overflow Damage 1601 | . . . . . . 19 . 284 134 154 130 880 Projectiles 141 | . . . . . . . . . . . . 141 Explosions 124 | . . . . . . 14 . . 8 28 . 74 Melee 1336 | . . . . . . 5 . 284 126 126 130 665 Knockbacks 23 | . . . . . . . 1 . 2 . 6 14 Impact . | . . . . . . . . . . . . . Kinetic 23 | . . . . . . . 1 . 2 . 6 14 Secondary . | . . . . . . . . . . . . . Self-Inflicted Damage 323 | . . . . . . 70 . . 41 . 78 134 Shots 7 | . . . . . . 2 . . 1 . 2 2 Rammed . | . . . . . . . . . . . . . Targets Rammed 4 | . 4 . . . . . . . . . . . Kicked 4 | . 4 . . . . . . . . . . . Crushed . | . . . . . . . . . . . . . Highest Temperature 1035 | . 84 60 . 316 48 572 105 44 634 196 455 1035 Average Temperature 130 | . 24 20 . 121 27 188 47 20 127 75 134 157 Received Heat Transfer 2315 | . 243 93 60 290 . 279 . . 45 43 872 390 Effects 103 | . . . . 1 . 11 . . 28 . 3 60 Shutdowns 29 | . . . . . . 3 . . 7 . 1 18 Energy Bleed 8 | . . . . 1 . . . . 1 . 2 4 Interference 25 | . . . . . . 5 . . 4 . . 16 Matter Decay 6 | . . . . . . 1 . . 1 . . 4 Short Circuit 8 | . . . . . . 2 . . 2 . . 4 Damage (minor) 2 | . . . . . . . . . 2 . . . Damage (major) 15 | . . . . . . . . . 6 . . 9 Damage (core) 10 | . . . . . . . . . 5 . . 5 Siege Activations . | . . . . . . . . . . . . . Martial Activations . | . . . . . . . . . . . . . Shielding Activations . | . . . . . . . . . . . . . Robots Disrupted 1 | . . . . . . 1 . . . . . . Combat Hostiles 1 | . . . . . . 1 . . . . . . Robots Corrupted 3 | . . . . . . . . . 1 . 2 . Combat Hostiles 3 | . . . . . . . . . 1 . 2 . Parts Fried 4 | . . . . . . . . . 1 . 3 . Impact Corruptions . | . . . . . . . . . . . . . Robots Melted 13 | . . . . . . 1 . 1 1 . . 10 Combat Hostiles 11 | . . . . . . 1 . 1 1 . . 8 Parts Melted 85 | . 1 . . 10 . 5 . 6 9 4 10 40 Heat Transferred 21187 | . 420 . . 535 120 2750 . 1200 2337 942 4194 8689 Parts Sabotaged . | . . . . . . . . . . . . . Parts Stolen . | . . . . . . . . . . . . . Parts Stripped . | . . . . . . . . . . . . . Power Chain Reactions 4 | . . . . . . 1 . . 1 . 2 . Alert | -11 -10 -10 -10 -9 -6 -6 -5 -5 -5 -4 -4 -3 ------- Run | Yrd Mat Min Sub Scr Fac DSF Fac Was Fac Fac Ext Res Maximum Alert Level 3 | . . . . . . 1 . . 3 2 1 3 Low Security (%) 76 | 100 100 100 . . 100 89 100 100 52 . 68 77 Level 1 12 | . . . . . . 10 . . . 85 31 9 Level 2 7 | . . . . . . . . . 39 14 . 4 Level 3 3 | . . . . . . . . . 7 . . 9 Level 4 . | . . . . . . . . . . . . . Level 5 . | . . . . . . . . . . . . . High Security . | . . . . . . . . . . . . . Max Security . | . . . . . . . . . . . . . Sterilizations 1 | . . . . . . 1 . . . . . . Peak Influence 803 | 5 103 36 . . 15 203 111 6 803 440 280 733 Initial 387 | . . 9 . . . . 106 6 . 387 142 140 Average 143 | . 37 2 . . 1 77 66 . 285 356 176 184 Influence Increases 4793 | 15 417 121 . . 20 273 23 . 1205 205 1062 1452 Destroy 0b10 Robot/C 2460 | . 220 60 . . . 200 . . 380 140 660 800 Destroy 0b10 Robot/NC 300 | 15 25 10 . . . . 5 . 70 10 100 65 Destroy Leader 486 | . 66 10 . . . 30 . . 96 12 106 166 Allied During Kill 45 | . . . . . . 9 . . . . 36 . Successful Hack 162 | . 21 . . . 5 . 14 . 50 4 33 35 Disable Machine 360 | . 15 . . . 15 15 . . 270 15 15 15 Anti-Garrison Action 150 | . . . . . . . . . 150 . . . Destroy Structure 650 | . 10 11 . . . 19 4 . 174 24 52 356 Lose Combat Pursuer 180 | . 60 30 . . . . . . 15 . 60 15 Influence Decreases 4066 | 15 392 110 36 . 20 70 207 19 414 704 1086 993 Entered New Map 828 | . . 16 20 . . . 97 13 . 404 150 128 Time Decay 2378 | 15 392 84 16 . 20 . 110 6 314 270 506 645 Lost Part 780 | . . 10 . . . 50 . . 100 30 370 220 Lost Ally 80 | . . . . . . 20 . . . . 60 . Squads Dispatched 34 | . 4 . . . . 1 2 . 8 2 4 13 Investigation 6 | . 2 . . . . . 1 . 1 . 2 . Extermination 11 | . . . . . . . 1 . 2 1 . 7 Reinforcement 15 | . 2 . . . . 1 . . 3 1 2 6 Assault 2 | . . . . . . . . . 2 . . . Garrison . | . . . . . . . . . . . . . Intercept . | . . . . . . . . . . . . . Searches Triggered . | . . . . . . . . . . . . . Construction Impeded 1 | . . . . . . . . . . . 1 . Haulers Reinforced 1 | . . . . . . . . . . . . 1 Active Scanning Responses . | . . . . . . . . . . . . . Cargo Convoy Interrupts . | . . . . . . . . . . . . . Stealth | -11 -10 -10 -10 -9 -6 -6 -5 -5 -5 -4 -4 -3 --------- Run | Yrd Mat Min Sub Scr Fac DSF Fac Was Fac Fac Ext Res Distress Signals 7 | . 3 . . . . . . . 1 . 2 1 Communications Jammed 18 | . . . . . . . . . . . . 18 Distress Signals 17 | . . . . . . . . . . . . 17 Times Spotted 195 | . 29 5 3 17 . 11 . . 28 10 44 48 Peak Tracking Total 8 | . 4 2 2 3 . 4 . . 4 5 8 7 Tactical Retreats 10 | . 3 1 . 1 . . . . 1 . 3 1 Traps | -11 -10 -10 -10 -9 -6 -6 -5 -5 -5 -4 -4 -3 ------- Run | Yrd Mat Min Sub Scr Fac DSF Fac Was Fac Fac Ext Res Traps Triggered 5 | . 1 . . . . . 1 . 1 . 1 1 Indirectly . | . . . . . . . . . . . . . Trap Hack Attempts . | . . . . . . . . . . . . . Triggered . | . . . . . . . . . . . . . Disarmed . | . . . . . . . . . . . . . Reprogrammed . | . . . . . . . . . . . . . Reused . | . . . . . . . . . . . . . Traps Extracted . | . . . . . . . . . . . . . Installed . | . . . . . . . . . . . . . Triggered . | . . . . . . . . . . . . . Machines | -11 -10 -10 -10 -9 -6 -6 -5 -5 -5 -4 -4 -3 ---------- Run | Yrd Mat Min Sub Scr Fac DSF Fac Was Fac Fac Ext Res Machines Disabled 27 | . 1 . . 1 1 1 . . 19 1 2 1 Max in Single Turn 7 | . 1 . . 1 1 1 . . 7 1 1 1 Garrison Access 1 | . . . . . . . . . 1 . . . Machines Repaired . | . . . . . . . . . . . . . Machines Dismantled . | . . . . . . . . . . . . . Machines Sabotaged . | . . . . . . . . . . . . . Overloaded Fab Kills . | . . . . . . . . . . . . . Hacking | -11 -10 -10 -10 -9 -6 -6 -5 -5 -5 -4 -4 -3 --------- Run | Yrd Mat Min Sub Scr Fac DSF Fac Was Fac Fac Ext Res Machines Accessed 43 | . 7 . . 9 2 . 3 . 7 2 4 9 Terminals 22 | . 6 . . . 2 . 3 . 3 2 3 3 Fabricators 1 | . . . . . . . . . 1 . . . Repair Stations 1 | . . . . . . . . . . . . 1 Recycling Units 5 | . 1 . . . . . . . 2 . 1 1 Scanalyzers 3 | . . . . . . . . . . . . 3 Garrison Access 2 | . . . . . . . . . 1 . . 1 Total Hacks 129 | . 24 . . 58 4 . 6 . 12 3 6 16 Successful 88 | . 10 . . 58 2 . 2 . 4 2 4 6 Failed 41 | . 14 . . . 2 . 4 . 8 1 2 10 Catastrophic 9 | . 1 . . . . . . . 3 1 1 3 Database Lockouts . | . . . . . . . . . . . . . Manual 46 | . 21 . . . . . 6 . 9 2 1 7 Terminals 49 | . 21 . . . 4 . 6 . 5 3 5 5 Fabricators 2 | . . . . . . . . . 2 . . . Repair Stations 3 | . . . . . . . . . . . . 3 Recycling Units 10 | . 3 . . . . . . . 4 . 1 2 Scanalyzers 5 | . . . . . . . . . . . . 5 Garrison Access 2 | . . . . . . . . . 1 . . 1 Terminal Hacks 67 | . 1 . . 58 2 . 1 . . 2 3 . Record 58 | . . . . 57 1 . . . . . . . Part Schematic 1 | . 1 . . . . . . . . . . . Open Door 4 | . . . . . . . . . . 1 3 . Open DSF 2 | . . . . . 1 . 1 . . . . . Alert Level 1 | . . . . . . . . . . 1 . . Proto ID Catalog 1 | . . . . 1 . . . . . . . . Fabricator Hacks 1 | . . . . . . . . . 1 . . . Build 1 | . . . . . . . . . 1 . . . Repair Station Hacks 2 | . . . . . . . . . . . . 2 Scan Component 1 | . . . . . . . . . . . . 1 Repair 1 | . . . . . . . . . . . . 1 Recycling Unit Hacks 3 | . 3 . . . . . . . . . . . Process 1 | . 1 . . . . . . . . . . . Report Inventory 1 | . 1 . . . . . . . . . . . Retrieve Matter 1 | . 1 . . . . . . . . . . . Scanalyzer 2 | . . . . . . . . . . . . 2 Retrieve Study 2 | . . . . . . . . . . . . 2 Garrison Access Hacks . | . . . . . . . . . . . . . Unauthorized Hacks 9 | . 6 . . . . . 1 . 2 . . . Terminals 9 | . 6 . . . . . 1 . 2 . . . Botnet 8 | . 5 . . . . . 1 . 2 . . . Skim 1 | . 1 . . . . . . . . . . . Fabricators . | . . . . . . . . . . . . . Repair Stations . | . . . . . . . . . . . . . Recycling Units . | . . . . . . . . . . . . . Scanalyzers . | . . . . . . . . . . . . . Garrison Access . | . . . . . . . . . . . . . Data Cores Recovered 1 | . . . . . . . 1 . . . . . Used 1 | . . . . . . . 1 . . . . . Hacking Detections 30 | . 7 . . . 2 . 3 . 7 1 2 8 Full Trace Events 5 | . 3 . . . . . 1 . . . 1 . Feedback Events . | . . . . . . . . . . . . . Feedback Blocked . | . . . . . . . . . . . . . Robot Schematics Acquired . | . . . . . . . . . . . . . Robots Built . | . . . . . . . . . . . . . Authchips . | . . . . . . . . . . . . . Time . | . . . . . . . . . . . . . Total Robot Build Rating . | . . . . . . . . . . . . . Part Schematics Acquired 1 | . 1 . . . . . . . . . . . Parts Built 2 | . . . . . . . . . 2 . . . Authchips . | . . . . . . . . . . . . . Time 117 | . . . . . . . . . 117 . . . Total Part Build Rating 14 | . . . . . . . . . 14 . . . Part Studies Acquired 2 | . . . . . . . . . . . . 2 Parts Repaired 1 | . . . . . . . . . . . . 1 Time 50 | . . . . . . . . . . . . 50 Parts Recycled . | . . . . . . . . . . . . . Recycled Matter 15 | . 15 . . . . . . . . . . . Retrieved Matter 15 | . 15 . . . . . . . . . . . Retrieved Components . | . . . . . . . . . . . . . Parts Scanalyzed . | . . . . . . . . . . . . . Part Schematics Acquired . | . . . . . . . . . . . . . Parts Damaged . | . . . . . . . . . . . . . Bothacking | -11 -10 -10 -10 -9 -6 -6 -5 -5 -5 -4 -4 -3 ------------ Run | Yrd Mat Min Sub Scr Fac DSF Fac Was Fac Fac Ext Res Used RIF Installer . | . . . . . . . . . . . . . Robots Hacked . | . . . . . . . . . . . . . Non-combat . | . . . . . . . . . . . . . Combat . | . . . . . . . . . . . . . Robot Hacks Applied . | . . . . . . . . . . . . . Relay Couplers Released 2 | . . . . . . . . . 2 . . . Machine Destruction 2 | . . . . . . . . . 2 . . . Fabnet Peak Effective % . | . . . . . . . . . . . . . Robots Rewired 1 | . . . . . . 1 . . . . . . Allies Hacked . | . . . . . . . . . . . . . Hacks Repelled . | . . . . . . . . . . . . . Allies | -11 -10 -10 -10 -9 -6 -6 -5 -5 -5 -4 -4 -3 -------- Run | Yrd Mat Min Sub Scr Fac DSF Fac Was Fac Fac Ext Res Total Allies 4 | . . . . . . 1 . . . . 3 . Largest Group 3 | . . . . . . 1 . . . . 3 . Highest-Rated Group 232 | . . . . . . 90 . . . . 232 . Highest-Rated Ally 159 | . . . . . . 90 . . . . 159 . Total Orders . | . . . . . . . . . . . . . Ally Attacks 56 | . . . . . . 13 . . . . 43 . Total Damage 1725 | . . . . . . 541 . . . . 1184 . Kills 12 | . . . . . . 3 . . . . 9 . Allies Corrupted . | . . . . . . . . . . . . . Allies Melted 5 | . . . . 4 . . . . . . 1 . Intel | -11 -10 -10 -10 -9 -6 -6 -5 -5 -5 -4 -4 -3 ------- Run | Yrd Mat Min Sub Scr Fac DSF Fac Was Fac Fac Ext Res Active Infowar (turns) 6556 | . 460 817 . . 178 97 215 559 618 439 1031 2142 Optics 716 | . . . . . . . . . . . 716 . Sensors 4982 | . . 817 . . 178 97 215 559 618 439 315 1744 Terrain 355 | . . . . . . . . . . . . 355 Seismic 460 | . 460 . . . . . . . . . . . Jamming 1289 | . . . . . . . . . . . . 1289 Robot Analysis Total . | . . . . . . . . . . . . . Derelict Logs Recovered 6 | . . 2 2 2 . . . . . . . . Drone Launches . | . . . . . . . . . . . . . Drone Recoveries . | . . . . . . . . . . . . . Exploration | -11 -10 -10 -10 -9 -6 -6 -5 -5 -5 -4 -4 -3 ------------- Run | Yrd Mat Min Sub Scr Fac DSF Fac Was Fac Fac Ext Res Turns Passed 12745 | 168 1354 1113 394 2299 185 318 223 631 1397 581 1367 2715 Spaces Moved 7917 | 99 788 784 306 1700 156 132 170 496 860 364 659 1403 Core 19 | 1 . . . . . . . . . . 18 . Treads 2 | . 2 . . . . . . . . . . . Legs 7895 | 98 786 784 306 1700 156 131 170 496 860 364 641 1403 Wheels . | . . . . . . . . . . . . . Hover . | . . . . . . . . . . . . . Flight 1 | . . . . . . 1 . . . . . . Fastest Speed 50 | 50 120 120 120 95 100 95 112 114 112 115 50 103 Average Speed 119 | 119 120 120 120 124 100 113 113 114 116 115 131 112 Slowest Speed 360 | 120 160 120 120 270 100 360 114 114 187 115 260 183 Overloaded Moves . | . . . . . . . . . . . . . Propulsion Burnouts . | . . . . . . . . . . . . . Robots Hopped . | . . . . . . . . . . . . . Potential Cave-ins 10 | . . . . . . . . . . . 10 . Cave-ins Triggered . | . . . . . . . . . . . . . Exploration Rate (%) 48 | 8 97 97 16 87 4 90 6 97 29 7 54 36 Regions Visited 12 Branch Regions 4 Pre-discovered Areas 3 | . . 1 1 1 . . . . . . . . Known Exits Taken 7 | . . 1 1 1 1 . . . 1 1 1 . Unknown Exits Taken 2 | 1 1 . . . . . . . . . . . Scrap Searched 8 | . . 1 1 6 . . . . . . . . Spaces Dug 149 | . 6 11 . . . . 2 . 16 4 1 109 Terrain Destroyed 444 | . 8 19 . . . 13 2 . 87 17 51 247 Melee 74 | . . . . . . . 2 . 12 4 1 55 Projectile 63 | . 8 5 . . . . . . 8 1 24 17 AOE 307 | . . 14 . . . 13 . . 67 12 26 175 Terrain Rammed . | . . . . . . . . . . . . . Walls Destroyed . | . . . . . . . . . . . . . Machines Disabled . | . . . . . . . . . . . . . Actions | -11 -10 -10 -10 -9 -6 -6 -5 -5 -5 -4 -4 -3 --------- Run | Yrd Mat Min Sub Scr Fac DSF Fac Was Fac Fac Ext Res Total 10246 | 131 1065 904 321 1835 180 242 194 549 1137 495 962 2231 Wait 1160 | 3 164 85 4 24 9 11 13 1 150 84 104 508 Move 7906 | 98 787 783 305 1699 155 131 170 495 859 363 658 1403 Hop . | . . . . . . . . . . . . . Pick Up 190 | 13 12 1 2 29 4 16 2 12 15 10 40 34 Fast Attach 38 | . 3 1 . 2 . 10 . 1 . . 5 16 Attach 116 | 6 2 . 3 7 7 5 2 1 15 9 36 23 Detach 14 | . 3 . . . . 3 . 1 2 2 . 3 Swap 127 | . 15 7 . 16 3 11 2 8 23 8 5 29 Drop 131 | . 15 3 1 27 . 20 1 13 8 1 10 32 Fire 354 | 11 60 24 6 30 . 23 1 . 30 6 90 73 Melee 192 | . . . . 1 2 7 2 10 35 12 13 110 Ram 1 | . . . . . . . . . . . 1 . Kick 4 | . 4 . . . . . . . . . . . Crush . | . . . . . . . . . . . . . Escape Stasis . | . . . . . . . . . . . . . Rewire 13 | . . . . . . 5 1 7 . . . . Trap . | . . . . . . . . . . . . . Miscellaneous . | . . . . . . . . . . . . . Route ------- -11/Scrapyard -10/Materials (discovered 3 exits: *Mat x2 / [*Min]) -10/Mines (discovered 3 exits: *Mat x2 / *Sub) -10/Subcaves (discovered 2 exits: [*Mat] / *Scr) -9/Scraptown (discovered 2 exits: *Fac x2) -6/Factory -6/DSF -5/Factory -5/Waste -5/Factory -4/Factory -4/Extension (discovered 3 exits: *Res x2 / *Cet) -3/Research History --------- Turn | Location | Event 8 | -11/Scrapyard | Discovered new exit (range 16) 169 | -11/Scrapyard | Entered Materials 315 | -10/Materials | Build established: Mutant 967 | -10/Materials | Discovered new exit (range 10) 1046 | -10/Materials | Discovered new exit (range 11) 1131 | -10/Materials | Build established: Scavenger-Mutant 1251 | -10/Materials | Discovered new exit (range 16) 1523 | -10/Materials | Entered Mines 1593 | -10/Mines | Met a Derelict bent on vengeance 1906 | -10/Mines | Discovered new exit (range 6) 2275 | -10/Mines | Learned Materials terminal intel 2322 | -10/Mines | Discovered new exit (range 12) 2341 | -10/Mines | Identified exit to Materials 2368 | -10/Mines | Discovered new exit (range 15) 2381 | -10/Mines | Identified exit to Subcaves 2426 | -10/Mines | Learned location of Recycling (-9) 2636 | -10/Mines | Entered Subcaves 2637 | -10/Subcaves | Approached by a straggling Scientist 2656 | -10/Subcaves | Learned location of Zion (-7) 2686 | -10/Subcaves | Learned location of 2 exits from Materials 2802 | -10/Subcaves | Identified exit to Scraptown 2956 | -10/Subcaves | Discovered new exit (range 15) 2964 | -10/Subcaves | Lost 3 parts (1p1n1w) 3030 | -10/Subcaves | Entered Scraptown 3207 | -9/Scraptown | Build established: Mutant 3482 | -9/Scraptown | Heard Great Nut preacher, LISTEN AND RECITE! 3490 | -9/Scraptown | Visited Fellowship of the Rings 3522 | -9/Scraptown | Visited Bundlers 3629 | -9/Scraptown | Visited TADAMA 3669 | -9/Scraptown | Visited UFD Registry 3669 | -9/Scraptown | Registered with UFD as "Boltbank" 3677 | -9/Scraptown | Visited The Evicted 3750 | -9/Scraptown | Visited Cyclists 3765 | -9/Scraptown | Entered Cyclist Reading Room 3789 | -9/Scraptown | Visited Assassins FH 3828 | -9/Scraptown | Visited Cave Peace 3896 | -9/Scraptown | Scanned Subdweller tech in exchange for log data 3900 | -9/Scraptown | Learned Research non-interactive machine intel 3901 | -9/Scraptown | Learned Research emergency access door positions 4088 | -9/Scraptown | Received an X-ray algorithm 4210 | -9/Scraptown | Discovered new exit (range 5) 4214 | -9/Scraptown | Identified exit to Factory 4262 | -9/Scraptown | Guru changed UFD alias to "Spikemind" 4374 | -9/Scraptown | Visited Junk Cannon Lab 4398 | -9/Scraptown | Found Prototype Special Weapon 4399 | -9/Scraptown | Identified Junk Cannon 4446 | -9/Scraptown | Visited Curators Association 4483 | -9/Scraptown | Visited Scrap Suit Storage 4523 | -9/Scraptown | Visited Science Guys 4574 | -9/Scraptown | Visited Derelict Rescue Squad 4587 | -9/Scraptown | Found DRS Beacon 4624 | -9/Scraptown | Met Optimus 4624 | -9/Scraptown | Accepted into 0bPrime 4695 | -9/Scraptown | Visited Supply Room 4752 | -9/Scraptown | Visited Observation Area 4821 | -9/Scraptown | Civil war broke out across Scraptown 4944 | -9/Scraptown | Found Scrap Suit 4971 | -9/Scraptown | Visited LU-1G1's Boring Crew 5063 | -9/Scraptown | Optimus destroyed in the chaos of civil war 5087 | -9/Scraptown | Core integrity fell below 50% 5137 | -9/Scraptown | Lost 3 allies 5209 | -9/Scraptown | Lost 3 parts (1p2n) 5237 | -9/Scraptown | Found Thermal Lance 5329 | -9/Scraptown | Entered Factory 5329 | -6/Factory | Evolved 8 slots: Power x1, Propulsion x2, Utility x4, Weapon x1 5391 | -6/Factory | Identified exit to DSF 5514 | -6/Factory | Entered DSF 5617 | -6/DSF | Additional patrols routed to DSF 5679 | -6/DSF | Discovered new exit (range 14) 5818 | -6/DSF | Sterilization system engaged 5832 | -6/DSF | Entered Factory 5832 | -5/Factory | Evolved 2 slots: Propulsion x1, Utility x1 5862 | -5/Factory | Build established: Scavenger-Tank 5866 | -5/Factory | Ran an X-ray algorithm 6055 | -5/Factory | Sucked down chute 6055 | -5/Factory | Entered Waste 6055 | -5/Waste | The area was eerily silent 6063 | -5/Waste | Found Gamma Bomb Array 6224 | -5/Waste | Build established: Scavenger-Skirmisher 6552 | -5/Waste | Murdered 3 allies 6597 | -5/Waste | Discovered new exit (range 12) 6615 | -5/Waste | Found Prototype Device 6615 | -5/Waste | Identified Adv. Particle Accelerator 6624 | -5/Waste | Identified exit to Factory 6640 | -5/Waste | Build established: Scavenger-Mutant 6686 | -5/Waste | Entered Factory 7435 | -5/Factory | Core integrity fell below 50% 7441 | -5/Factory | Lost 3 parts (1p2u) 7443 | -5/Factory | Core integrity fell below 20% 7658 | -5/Factory | Discovered new exit (range 16) 7727 | -5/Factory | Fabricated Hvy. Disruptor Cannon? 7790 | -5/Factory | Identified exit to Factory 7932 | -5/Factory | Found Prototype Launcher 7933 | -5/Factory | Identified Tesla Bomb Launcher 8083 | -5/Factory | Entered another Factory area 8083 | -4/Factory | Evolved 2 slots: Propulsion x1, Weapon x1 8312 | -4/Factory | Build established: Tank 8601 | -4/Factory | Discovered new exit (range 6) 8605 | -4/Factory | Identified exit to Extension 8664 | -4/Factory | Entered Extension 8901 | -4/Extension | Rescued A7 9031 | -4/Extension | Rescued a captive Derelict 9032 | -4/Extension | Rescued a captive Derelict 9048 | -4/Extension | Spotted B-86 Titan 9090 | -4/Extension | Destroyed B-86 Titan 9132 | -4/Extension | Spotted B-86 Titan 9165 | -4/Extension | Allies destroyed B-86 Titan 9191 | -4/Extension | Lost 10 parts (1p4n2u3w) 9239 | -4/Extension | Build established: Scavenger-Tank 9274 | -4/Extension | Discovered new exit (range 3) 9274 | -4/Extension | Identified exit to Research 9414 | -4/Extension | Disrupted transfer network 9446 | -4/Extension | System corruption reached 10% 9497 | -4/Extension | Extracted ID and sensor layout for unrecognized location from A7's data core 9544 | -4/Extension | System corruption reached 30% 9562 | -4/Extension | Lost 16 parts (2p4n3u7w) 9702 | -4/Extension | Core integrity fell below 50% 9703 | -4/Extension | Lost 5 parts (1p3n1w) 9990 | -4/Extension | Discovered exit to Research (range 16) 9991 | -4/Extension | Discovered new exit (range 15) 10005 | -4/Extension | Build established: Scavenger-Mutant 10023 | -4/Extension | Identified exit to Cetus 10031 | -4/Extension | Entered Research 10031 | -3/Research | Evolved 2 slots: Power x1, Utility x1 10033 | -3/Research | Loaded intel: 84 non-interactive machine locations 10300 | -3/Research | Lost 3 parts (2u1w) 10582 | -3/Research | Build established: Scavenger-Gunner 10823 | -3/Research | Repaired Adv. Heat Sink 11499 | -3/Research | System corruption reached 10% 11531 | -3/Research | Core integrity fell below 50% 11621 | -3/Research | Core integrity fell below 20% 11662 | -3/Research | Lost 3 parts (1p1u1w) 11773 | -3/Research | Found Prototype Launcher 11774 | -3/Research | Identified Tactical Quantum Warhead 12080 | -3/Research | Build established: Assassin 12533 | -3/Research | Destroyed 10 combat bots 12539 | -3/Research | Lost 8 parts (2p1n1u4w) 12746 | -3/Research | Destroyed by P-80 Master with Gamma Rifle Last Messages --------------- 12675_ X-82 Rainmaker destroyed. 12675_ Slug penetrates Wall. 12679_ Acquired 71 matter. 12681_ Acquired Lgt. Particle Reactor. 12683_ Dropped Neutrino Core. 12684_ Dropped Hvy. Gauss Cannon. 12685_ Acquired Unknown Ballistic Cannon. 12686_ Identified Hvy. Flak Cannon. 12702_ Connecting with Garrison Access... 12722_ System corrupted: Heat flow error (+106). 12735_ U-05 Engineer signal jammed. 12735_ P-80 Master knocked back. 12735_ U-05 Engineer call for reinforcements jammed. 12735_ U-05 Engineer distress signal jammed. 12738_ Slug penetrates P-80 Master. 12738_ P-80 Master knocked back. 12740_ U-05 Engineer destroyed. 12743_ System corrupted: Matter fused (-6). 12745_ Slug penetrates P-80 Master. Map ----- +----------------------------------------------------+ | ??#! ## ## #??????????????????????? | | ??# ## ## #??????????????????????? | | ??# + ##########?????????????????????? | | ??# ! # # #?????????????????????? | | ??# !! # # ! #?????????????????????? | | ??# !! =/ + #?????????????????????? | | ??# !! # # """ #?????????????????????? | | ??# ]*# # """ #?????????????????????? | | ??########### # """ #?????????????????????? | | ??# # # #?????????????????????? | | ??# # # #?????????????????????? | | ??# ""G"" # ##########?????????????????????? | | ??# " " / #??????????????????????????????? | | ??# " " # #??????????????????????????????? | | ??# # #??????????????????????????????? | | ??# = ! # #??????????????????????????????? | | ??# # #??????????????????????????????? | | ??########### #???"""????????????????????????? | | ????????????# #???"""????????????????????????? | | ????????????# #???"""???????????????????+????? | | ????????????# #??????????????????????????????? | | ????????????# #??????????????????????????????? | | ???????????## ##?????????????????????????????? | | ???????????# #?????????????????????????????? | | ???????????# #################?????????????? | | ???????????# p @! ????????? | | ???????????# "p =%= ????????? | | ???????????# *! ????????? | | ???????????# ############+########?????????? | | ???????????# #?????????????????????????????? | | ???????????#########?????????????????????????????? | | ?????????????????????????????????????????????????? | | ?????????????????????????????????????????????????? | | ?????????????????????????????????????????????????? | | | | | | | | | | | | | | | | | | | | | | | | | | | | | | | | | +----------------------------------------------------+ Best States ------------- Heat Dissipation 122 Coolant Potential 80 Energy Generation 61 Energy Capacity 630 Matter Stores 350 Matter Capacity 350 Sight Range 20 Robot Scan Range 16 Terrain Scan Range 16 Terrain Scan Density 85 Jamming Range 16 EM Shielding 2 Armor Coverage 825 Resistance: KI 20 Evasion (%) 70 Targeting Accuracy 8 Core Analysis 6 Recoil Reduction 2 Particle Charging 50 Offensive Hacking 14 Defensive Hacking 11 Item Schematics ----------------- Huge Storage Unit | -10/Materials | Hacked Robot Schematics ------------------ None Fabricated ------------ Hvy. Disruptor Cannon | x2 | -5/Factory | Preloaded Repaired ---------- Adv. Heat Sink | 34% | -3/Research Studied --------- Myomer Leg | -3/Research | Hacked Imp. Thunder Leg | -3/Research | Hacked Alien Tech Used ----------------- None Achievements -------------- Bob, First Of His Name Collateral Damage Link The Feds Longdome?! Sprinter Uncivil War Challenges ------------ None Game ------ Seed GhostStealthArmor Manual? 0 Play Time 03:00:18 Cumulative 42.8 hours Start 2025.11.03 @ 19:25:18 End 2025.11.03 @ 23:29:31 Sessions 1 Manual Loads 0 Difficulty Rogue Special Mode None Game No. 23 Rogue 23 Adventurer 0 Explorer 0 Win Type - Total 0 Types 0/0/0/0/0/0/0/0/0/0 Lore% 32 Gallery% 33 Achievement% 31 Wizard Run 0 Options --------- Layout 1 ASCII 0 Keyboard 0 Movement Numpad Keybinds 0 Fullscreen 2 Font 24/Smallcaps Map View 50x35 Zoom Use 0% Tactical HUD 1 Map Filters NONE Filters NONE Steam 1 RUN: 994fc4ef-e516-4186-9d8d-b99c4bbe35a8